[Event "12th Arad Open 2019"]
[Site "Arad"]
[Date "2019.07.26"]
[Round "4.18"]
[White "Magold, Victor"]
[Black "Ardeleanu, Alin"]
[Result "0-1"]
[ECO "A46"]
[WhiteElo "1962"]
[BlackElo "2323"]
[Annotator "NA"]
[PlyCount "120"]
[EventDate "2019.07.24"]
[EventType "swiss"]
[EventCountry "ROU"]
[SourceTitle "playchess.com"]
[Source "ChessBase"]
[SourceQuality "1"]
[TimeControl "40/5400+30:900+30"]

1. d4 {[%emt 0:00:00]} Nf6 {[%emt 0:03:43]} 2. Nf3 {[%emt 0:00:04]} c5 {[%emt 0:02:00]} 3. g3 {[%emt 0:01:49]} g6 {[%emt 0:00:45]} 4. Bg2 {[%emt 0:00:10]} Bg7 {[%emt 0:00:36]} 5. O-O {[%emt 0:00:15]} cxd4 {[%emt 0:00:20]} 6. Nxd4 {[%emt 0:00:09]} O-O {[%emt 0:00:06]} 7. c4 {[%emt 0:01:37]} Nc6 {[%emt 0:00:33]} 8. Nc3 {[%emt 0:03:46]} Qa5 {[%emt 0:04:45]} 9. Nc2 {[%emt 0:04:11]} d6 {[%emt 0:02:03]} 10. Rb1 {[%emt 0:07:12]} Ne5 {[%emt 0:28:08]} 11. Ne3 {[%emt 0:03:18]} Be6 {[%emt 0:05:14]} 12. Qb3 {[%emt 0:28:16]} Rab8 {[%emt 0:03:45]} 13. Ncd5 {[%emt 0:06:00]} Rfe8 {[%emt 0:04:55]} 14. Nxf6+ {[%emt 0:15:45]} Bxf6 {[%emt 0:11:13]} 15. Bd5 {[%emt 0:04:52]} Bxd5 {[%emt 0:12:27]} 16. Nxd5 {[%emt 0:04:49]} Rec8 {[%emt 0:06:05]} 17. Nxf6+ {[%emt 0:03:29]} exf6 {[%emt 0:00:01]} 18. Bf4 {[%emt 0:01:14]} Qa6 {[%emt 0:05:05]} 19. Bxe5 {[%emt 0:01:20]} fxe5 {[%emt 0:00:55]} 20. Rbc1 {[%emt 0:00:03]} Rc6 {[%emt 0:00:17]} 21. Rfd1 {[%emt 0:02:16]} Rbc8 {[%emt 0:01:11]} 22. a3 {[%emt 0:01:22]} Rc5 {[%emt 0:02:12]} 23. Rc3 {[%emt 0:03:37]} Qc6 {[%emt 0:01:53]} 24. Rcd3 {[%emt 0:03:41]} Rd8 {[%emt 0:00:28]} 25. Rd5 {[%emt 0:00:21]} Rxc4 {[%emt 0:00:53]} 26. Rxd6 {[%emt 0:00:11]} Rxd6 {[%emt 0:00:53]} 27. Rxd6 {[%emt 0:00:02]} Rc1+ {[%emt 0:00:27]} 28. Rd1 {[%emt 0:00:04]} Qb6 {[%emt 0:01:35]} 29. Qd3 {[%emt 0:02:53]} Qxb2 {[%emt 0:00:39]} 30. Rxc1 {[%emt 0:00:22]} Qxc1+ {[%emt 0:00:02]} 31. Kg2 {[%emt 0:00:06]} Qc6+ {[%emt 0:00:16]} 32. f3 {[%emt 0:00:48]} a6 {[%emt 0:01:15]} 33. Qe3 {[%emt 0:01:21]} Qb5 {[%emt 0:00:44]} 34. g4 {[%emt 0:00:27]} h6 {[%emt 0:00:22]} 35. h4 {[%emt 0:00:36]} Kh7 {[%emt 0:00:27]} 36. h5 {[%emt 0:00:50]} gxh5 {[%emt 0:00:06]} 37. gxh5 {[%emt 0:00:05]} Kg7 {[%emt 0:00:14]} 38. Qe4 {[%emt 0:00:31]} Qb2 {[%emt 0:00:48]} 39. Qg4+ {[%emt 0:00:29]} Kf8 {[%emt 0:00:26]} 40. Qc8+ {[%emt 0:00:00]} Kg7 {[%emt 0:00:00]} 41. Qg4+ {[%emt 0:04:25]} Kf6 {[%emt 0:02:43]} 42. Qh4+ {[%emt 0:00:33]} Ke6 {[%emt 0:00:54]} 43. Qc4+ {[%emt 0:00:31]} Ke7 {[%emt 0:00:20]} 44. Qc5+ {[%emt 0:02:24]} Kf6 {[%emt 0:00:27]} 45. Qe3 {[%emt 0:00:49]} Kg7 {[%emt 0:00:48]} 46. Qe4 {[%emt 0:02:28]} b5 {[%emt 0:03:40]} 47. Qg4+ {[%emt 0:00:09]} Kf6 {[%emt 0:01:06]} 48. Qh4+ {[%emt 0:01:11]} Ke6 {[%emt 0:00:30]} 49. Qe4 {[%emt 0:03:39]} Qxa3 {[%emt 0:01:09]} 50. Qc6+ {[%emt 0:00:49]} Qd6 {[%emt 0:00:24]} 51. Qe8+ {[%emt 0:00:37]} Kf6 {[%emt 0:00:17]} 52. e4 {[%emt 0:01:20]} Kg7 {[%emt 0:01:38]} 53. Qc8 {[%emt 0:01:51]} b4 {[%emt 0:00:13]} 54. Kg3 {[%emt 0:01:24]} a5 {[%emt 0:02:03]} 55. Qg4+ {[%emt 0:00:39]} Kf6 {[%emt 0:00:18]} 56. Qh4+ {[%emt 0:01:04]} Ke6 {[%emt 0:00:10]} 57. Qh3+ {[%emt 0:00:36]} Ke7 {[%emt 0:00:06]} 58. Qc8 {[%emt 0:00:21]} a4 {[%emt 0:03:03]} 59. Qb7+ {[%emt 0:00:33]} Kf6 {[%emt 0:00:03]} 60. Qc8 {[%emt 0:00:45]} a3 {[%emt 0:00:42]} 0-1

[Event "12th Arad Open 2019"]
[Site "Arad"]
[Date "2019.07.26"]
[Round "4.21"]
[White "Fluerariu, Radu-Cristian"]
[Black "Gheorghiu, Calin"]
[Result "1-0"]
[ECO "A13"]
[WhiteElo "2021"]
[BlackElo "2345"]
[Annotator "NA"]
[PlyCount "111"]
[EventDate "2019.07.24"]
[EventType "swiss"]
[EventCountry "ROU"]
[SourceTitle "playchess.com"]
[Source "ChessBase"]
[SourceQuality "1"]
[TimeControl "40/5400+30:900+30"]

1. c4 {[%emt 0:01:42]} e6 {[%emt 0:00:04]} 2. Nf3 {[%emt 0:02:04]} Nf6 {[%emt 0:00:09]} 3. e3 {[%emt 0:04:01]} d5 {[%emt 0:00:31]} 4. b3 {[%emt 0:02:32]} g6 {[%emt 0:00:33]} 5. Bb2 {[%emt 0:02:56]} Bg7 {[%emt 0:00:09]} 6. g3 {[%emt 0:05:06]} O-O {[%emt 0:00:36]} 7. Bg2 {[%emt 0:01:49]} a5 {[%emt 0:01:01]} 8. O-O {[%emt 0:06:52]} a4 {[%emt 0:04:53]} 9. cxd5 {[%emt 0:12:38]} exd5 {[%emt 0:02:12]} 10. bxa4 {[%emt 0:00:30]} Bd7 {[%emt 0:02:17]} 11. Nc3 {[%emt 0:06:05]} Nc6 {[%emt 0:03:19]} 12. d3 {[%emt 0:09:30]} d4 {[%emt 0:01:53]} 13. Nxd4 {[%emt 0:07:26]} Nxd4 {[%emt 0:00:10]} 14. exd4 {[%emt 0:00:02]} Bg4 {[%emt 0:05:42]} 15. Qc2 {[%emt 0:06:41]} c6 {[%emt 0:00:27]} 16. h3 {[%emt 0:06:57]} Be6 {[%emt 0:01:46]} 17. Rfd1 {[%emt 0:04:43]} Qc8 {[%emt 0:00:19]} 18. Kh2 {[%emt 0:01:20]} Ra5 {[%emt 0:00:02]} 19. Ne2 {[%emt 0:06:34]} Bd5 {[%emt 0:02:03]} 20. Bc3 {[%emt 0:03:26]} Bxg2 {[%emt 0:03:40]} 21. Kxg2 {[%emt 0:00:06]} Rh5 {[%emt 0:00:15]} 22. Nf4 {[%emt 0:02:18]} Rh6 {[%emt 0:00:07]} 23. Rh1 {[%emt 0:00:34]} g5 {[%emt 0:00:06]} 24. Ne2 {[%emt 0:00:49]} Qe6 {[%emt 0:00:05]} 25. Rae1 {[%emt 0:04:57]} Qd5+ {[%emt 0:01:37]} 26. Kg1 {[%emt 0:00:02]} Re8 {[%emt 0:01:25]} 27. Bd2 {[%emt 0:00:30]} Ng4 {[%emt 0:00:36]} 28. Nc3 {[%emt 0:01:16]} Rxe1+ {[%emt 0:04:35]} 29. Bxe1 {[%emt 0:00:02]} Qf3 {[%emt 0:00:13]} 30. Qe2 {[%emt 0:00:50]} Qxe2 {[%emt 0:02:57]} 31. Nxe2 {[%emt 0:00:01]} Re6 {[%emt 0:00:19]} 32. Kf1 {[%emt 0:00:12]} Nh6 {[%emt 0:00:44]} 33. Bd2 {[%emt 0:00:27]} Nf5 {[%emt 0:00:56]} 34. Bxg5 {[%emt 0:00:57]} Nxd4 {[%emt 0:00:01]} 35. Be3 {[%emt 0:00:56]} c5 {[%emt 0:00:28]} 36. Bxd4 {[%emt 0:00:35]} cxd4 {[%emt 0:00:22]} 37. Nf4 {[%emt 0:00:22]} Ra6 {[%emt 0:01:15]} 38. Kg2 {[%emt 0:00:24]} Rxa4 {[%emt 0:00:16]} 39. Rb1 {[%emt 0:00:37]} Ra7 {[%emt 0:00:09]} 40. a4 {[%emt 0:00:00]} Kf8 {[%emt 0:00:00]} 41. Rb4 {[%emt 0:04:48]} Ke8 {[%emt 0:03:15]} 42. Ne2 {[%emt 0:02:05]} Ra5 {[%emt 0:00:01]} 43. Nxd4 {[%emt 0:05:47]} Rd5 {[%emt 0:00:21]} 44. Nc2 {[%emt 0:02:02]} Rxd3 {[%emt 0:00:00]} 45. Rxb7 {[%emt 0:00:32]} Rd2 {[%emt 0:00:16]} 46. Ne3 Bd4 47. Kf3 {[%emt 0:00:58]} Ra2 {[%emt 0:00:36]} 48. Rb4 {[%emt 0:01:40]} Bxe3 {[%emt 0:00:01]} 49. Kxe3 {[%emt 0:00:13]} Kf8 {[%emt 0:00:43]} 50. Rf4 {[%emt 0:01:00]} Kg7 {[%emt 0:02:19]} 51. Kd3 Kg6 52. Kc3 {[%emt 0:01:18]} h5 {[%emt 0:00:33]} 53. h4 {[%emt 0:00:04]} f5 {[%emt 0:00:05]} 54. Kb3 {[%emt 0:01:03]} Ra1 {[%emt 0:00:04]} 55. Kb4 {[%emt 0:00:07]} Kf6 {[%emt 0:00:19]} 56. Kb5 {[%emt 0:00:16]} 1-0

[Event "12th Arad Open 2019"]
[Site "Arad"]
[Date "2019.07.26"]
[Round "4.22"]
[White "Dobre, Claudiu-Cristian"]
[Black "Albu, George"]
[Result "0-1"]
[ECO "E94"]
[WhiteElo "2340"]
[BlackElo "2014"]
[Annotator "NA"]
[PlyCount "154"]
[EventDate "2019.07.24"]
[EventType "swiss"]
[EventCountry "ROU"]
[SourceTitle "playchess.com"]
[Source "ChessBase"]
[SourceQuality "1"]
[TimeControl "40/5400+30:900+30"]

1. c4 {[%emt 0:00:00]} Nf6 {[%emt 0:00:00]} 2. Nc3 {[%emt 0:00:00]} g6 {[%emt 0:00:00]} 3. d4 {[%emt 0:00:00]} Bg7 {[%emt 0:00:00]} 4. Nf3 {[%emt 0:00:00]} O-O {[%emt 0:00:04]} 5. e4 {[%emt 0:00:06]} d6 {[%emt 0:00:06]} 6. Be2 {[%emt 0:00:05]} e5 {[%emt 0:00:08]} 7. O-O {[%emt 0:00:34]} exd4 {[%emt 0:00:24]} 8. Nxd4 {[%emt 0:00:00]} Re8 {[%emt 0:00:06]} 9. f3 {[%emt 0:00:00]} c6 {[%emt 0:00:05]} 10. Bf4 {[%emt 0:40:45]} Nh5 {[%emt 0:06:55]} 11. Be3 {[%emt 0:00:47]} f5 {[%emt 0:00:17]} 12. Qd2 {[%emt 0:04:51]} f4 {[%emt 0:13:41]} 13. Bf2 {[%emt 0:00:10]} a5 {[%emt 0:00:10]} 14. Rad1 {[%emt 0:21:02]} Be5 {[%emt 0:01:57]} 15. Nc2 {[%emt 0:00:33]} Qe7 {[%emt 0:07:53]} 16. Bd4 {[%emt 0:02:31]} Nd7 {[%emt 0:05:33]} 17. Na4 {[%emt 0:03:08]} Ng7 {[%emt 0:02:40]} 18. Bxe5 {[%emt 0:22:38]} dxe5 {[%emt 0:01:48]} 19. Qd6 {[%emt 0:00:19]} Ne6 {[%emt 0:01:37]} 20. Qxe7 {[%emt 0:01:30]} Rxe7 {[%emt 0:00:06]} 21. c5 {[%emt 0:00:50]} Nexc5 {[%emt 0:04:24]} 22. Nxc5 {[%emt 0:00:19]} Nxc5 {[%emt 0:00:05]} 23. Rd8+ {[%emt 0:00:17]} Kg7 {[%emt 0:00:15]} 24. Rfd1 {[%emt 0:00:18]} Ne6 {[%emt 0:09:56]} 25. R8d6 {[%emt 0:00:04]} Nc7 {[%emt 0:01:24]} 26. Na3 {[%emt 0:01:02]} Be6 {[%emt 0:00:28]} 27. Bc4 {[%emt 0:00:23]} a4 {[%emt 0:07:41]} 28. Bxe6 {[%emt 0:00:33]} Nxe6 {[%emt 0:00:13]} 29. Nc4 {[%emt 0:00:04]} Nf8 {[%emt 0:02:45]} 30. R1d3 {[%emt 0:01:24]} Ra6 {[%emt 0:02:07]} 31. Rd8 {[%emt 0:00:30]} b5 {[%emt 0:06:27]} 32. Nd6 {[%emt 0:00:05]} Ne6 {[%emt 0:00:06]} 33. Ne8+ {[%emt 0:00:37]} Kf7 {[%emt 0:00:39]} 34. Nd6+ {[%emt 0:00:19]} Kf6 {[%emt 0:00:21]} 35. Ne8+ {[%emt 0:01:00]} Kg5 {[%emt 0:00:34]} 36. Rc8 {[%emt 0:00:22]} Nd4 {[%emt 0:00:52]} 37. Nd6 {[%emt 0:00:42]} c5 {[%emt 0:00:39]} 38. Rd8 {[%emt 0:00:30]} c4 {[%emt 0:00:41]} 39. Rd1 {[%emt 0:00:30]} a3 {[%emt 0:00:49]} 40. bxa3 {[%emt 0:00:00]} c3 {[%emt 0:00:00]} 41. Kf1 {[%emt 0:03:56]} c2 {[%emt 0:01:49]} 42. Rc1 {[%emt 0:00:50]} Rxa3 {[%emt 0:01:36]} 43. Rb8 {[%emt 0:10:29]} Rd7 {[%emt 0:02:09]} 44. Nxb5 {[%emt 0:02:17]} Nxb5 {[%emt 0:00:09]} 45. Rxc2 {[%emt 0:00:04]} Nd4 {[%emt 0:02:01]} 46. Rc5 {[%emt 0:00:33]} Re7 {[%emt 0:00:19]} 47. Rd8 {[%emt 0:00:52]} Kf6 {[%emt 0:00:23]} 48. Rd6+ {[%emt 0:00:25]} Kf7 {[%emt 0:00:17]} 49. Rdd5 {[%emt 0:00:18]} Rxa2 {[%emt 0:01:59]} 50. Rxe5 {[%emt 0:00:10]} Rxe5 {[%emt 0:00:07]} 51. Rxe5 {[%emt 0:00:05]} Nc2 {[%emt 0:00:15]} 52. g3 {[%emt 0:01:14]} Ne3+ 53. Ke1 {[%emt 0:00:46]} Rxh2 {[%emt 0:00:45]} 54. gxf4 {[%emt 0:00:03]} Nc2+ {[%emt 0:01:35]} 55. Kf1 {[%emt 0:00:56]} Nd4 {[%emt 0:00:06]} 56. Ra5 {[%emt 0:00:19]} Nxf3 {[%emt 0:00:15]} 57. Ra7+ {[%emt 0:00:49]} Ke6 {[%emt 0:00:06]} 58. Ra6+ {[%emt 0:00:28]} Ke7 {[%emt 0:00:18]} 59. Ra3 {[%emt 0:00:25]} Nd2+ {[%emt 0:01:35]} 60. Kg1 {[%emt 0:00:30]} Rh4 {[%emt 0:00:19]} 61. Ra7+ {[%emt 0:00:33]} Kf8 {[%emt 0:01:17]} 62. f5 {[%emt 0:00:35]} Nxe4 {[%emt 0:00:23]} 63. fxg6 {[%emt 0:00:15]} hxg6 {[%emt 0:00:05]} 64. Kg2 {[%emt 0:00:34]} Rf4 {[%emt 0:00:09]} 65. Kh3 {[%emt 0:00:43]} g5 {[%emt 0:00:11]} 66. Rb7 {[%emt 0:00:17]} Nf6 {[%emt 0:02:37]} 67. Rb5 {[%emt 0:00:10]} g4+ {[%emt 0:01:30]} 68. Kh4 {[%emt 0:00:20]} Ne4 {[%emt 0:02:12]} 69. Rb8+ {[%emt 0:01:01]} Kg7 {[%emt 0:00:17]} 70. Re8 {[%emt 0:00:36]} Kg6 {[%emt 0:02:24]} 71. Rg8+ {[%emt 0:00:36]} Kf5 {[%emt 0:00:07]} 72. Rf8+ {[%emt 0:00:11]} Nf6 {[%emt 0:00:08]} 73. Ra8 {[%emt 0:00:06]} Rf1 {[%emt 0:00:19]} 74. Ra5+ {[%emt 0:00:48]} Kf4 {[%emt 0:00:14]} 75. Ra1 {[%emt 0:00:53]} Rf3 {[%emt 0:00:08]} 76. Rh1 {[%emt 0:00:30]} Ne4 {[%emt 0:00:11]} 77. Rh2 {[%emt 0:00:27]} Ng5 {[%emt 0:01:05]} 0-1

[Event "12th Arad Open 2019"]
[Site "Arad"]
[Date "2019.07.26"]
[Round "4.23"]
[White "Breitkopf, Francisc"]
[Black "Balla, Tamas-Kristof"]
[Result "1/2-1/2"]
[ECO "A21"]
[WhiteElo "1994"]
[BlackElo "2336"]
[Annotator "NA"]
[PlyCount "25"]
[EventDate "2019.07.24"]
[EventType "swiss"]
[EventCountry "ROU"]
[SourceTitle "playchess.com"]
[Source "ChessBase"]
[SourceQuality "1"]
[TimeControl "40/5400+30:900+30"]

1. c4 {[%emt 0:00:00]} e5 {[%emt 0:00:00]} 2. Nc3 {[%emt 0:00:00]} f5 {[%emt 0:00:00]} 3. e4 {[%emt 0:00:59]} d6 {[%emt 0:01:44]} 4. d3 {[%emt 0:01:57]} Nf6 {[%emt 0:00:34]} 5. Nge2 {[%emt 0:07:55]} Be6 {[%emt 0:01:49]} 6. Ng3 {[%emt 0:01:01]} f4 {[%emt 0:04:42]} 7. Nge2 {[%emt 0:03:09]} c6 {[%emt 0:03:52]} 8. g3 {[%emt 0:09:58]} g5 {[%emt 0:02:08]} 9. h4 {[%emt 0:04:15]} f3 {[%emt 0:01:33]} 10. hxg5 {[%emt 0:00:20]} fxe2 {[%emt 0:00:20]} 11. Bxe2 {[%emt 0:00:02]} Ng8 {[%emt 0:02:50]} 12. Bh5+ {[%emt 0:02:02]} Kd7 {[%emt 0:02:10]} 13. d4 {[%emt 0:05:35]} 1/2-1/2

[Event "12th Arad Open 2019"]
[Site "Arad"]
[Date "2019.07.26"]
[Round "4.24"]
[White "Patrascu, Catalin-Lucian"]
[Black "Secrieru, Andrei-Cristian"]
[Result "1-0"]
[ECO "A04"]
[WhiteElo "2292"]
[BlackElo "1968"]
[Annotator "NA"]
[PlyCount "51"]
[EventDate "2019.07.24"]
[EventType "swiss"]
[EventCountry "ROU"]
[SourceTitle "playchess.com"]
[Source "ChessBase"]
[SourceQuality "1"]
[TimeControl "40/5400+30:900+30"]

1. Nf3 {[%emt 0:00:00]} c5 {[%emt 0:00:06]} 2. c4 {[%emt 0:00:33]} Nc6 {[%emt 0:03:03]} 3. e3 {[%emt 0:00:49]} e6 {[%emt 0:02:42]} 4. b3 {[%emt 0:02:05]} Nf6 {[%emt 0:01:02]} 5. Bb2 {[%emt 0:00:25]} Be7 {[%emt 0:00:22]} 6. Nc3 {[%emt 0:00:44]} O-O {[%emt 0:00:31]} 7. d4 {[%emt 0:02:12]} cxd4 {[%emt 0:02:36]} 8. Nxd4 {[%emt 0:03:04]} Nxd4 {[%emt 0:15:44]} 9. Qxd4 {[%emt 0:00:26]} b6 {[%emt 0:01:36]} 10. Be2 {[%emt 0:03:36]} Bb7 {[%emt 0:00:54]} 11. O-O {[%emt 0:05:13]} Bc5 {[%emt 0:05:05]} 12. Qd3 {[%emt 0:10:27]} Qe7 13. Rad1 {[%emt 0:14:28]} d5 {[%emt 0:11:07]} 14. cxd5 {[%emt 0:03:29]} Nxd5 {[%emt 0:16:08]} 15. Bf3 {[%emt 0:03:10]} Nf6 {[%emt 0:15:00]} 16. Bxb7 {[%emt 0:10:52]} Qxb7 {[%emt 0:00:12]} 17. e4 {[%emt 0:02:43]} Rfc8 {[%emt 0:14:14]} 18. e5 {[%emt 0:06:49]} Ne8 {[%emt 0:01:35]} 19. Ne4 {[%emt 0:00:56]} Be7 {[%emt 0:00:42]} 20. Qf3 {[%emt 0:07:13]} Qc6 {[%emt 0:03:26]} 21. Rd3 {[%emt 0:04:02]} Qc2 {[%emt 0:03:12]} 22. Rd7 {[%emt 0:09:00]} Rc7 {[%emt 0:01:09]} 23. Nf6+ {[%emt 0:00:34]} gxf6 {[%emt 0:00:31]} 24. Qxa8 {[%emt 0:00:18]} Rxd7 {[%emt 0:00:16]} 25. Qxe8+ {[%emt 0:00:06]} Bf8 {[%emt 0:00:03]} 26. Ba3 {[%emt 0:00:47]} 1-0

[Event "12th Arad Open 2019"]
[Site "Arad"]
[Date "2019.07.26"]
[Round "4.25"]
[White "Sandor, Tamas"]
[Black "Dicu, Razvan-Stefan"]
[Result "0-1"]
[ECO "C08"]
[WhiteElo "1964"]
[BlackElo "2286"]
[Annotator "NA"]
[PlyCount "54"]
[EventDate "2019.07.24"]
[EventType "swiss"]
[EventCountry "ROU"]
[SourceTitle "playchess.com"]
[Source "ChessBase"]
[SourceQuality "1"]
[TimeControl "40/5400+30:900+30"]

1. e4 {[%emt 0:00:00]} e6 {[%emt 0:00:00]} 2. d4 {[%emt 0:00:00]} d5 {[%emt 0:00:00]} 3. Nd2 {[%emt 0:00:00]} c5 {[%emt 0:00:12]} 4. exd5 {[%emt 0:00:02]} exd5 {[%emt 0:00:08]} 5. Ngf3 {[%emt 0:00:30]} Nf6 {[%emt 0:00:21]} 6. Bb5+ {[%emt 0:00:43]} Bd7 {[%emt 0:00:12]} 7. Bxd7+ {[%emt 0:00:07]} Nbxd7 {[%emt 0:00:12]} 8. O-O {[%emt 0:00:50]} Be7 {[%emt 0:00:09]} 9. dxc5 {[%emt 0:00:35]} Nxc5 {[%emt 0:00:11]} 10. Nb3 {[%emt 0:01:38]} Nce4 {[%emt 0:00:08]} 11. Nfd4 {[%emt 0:00:25]} Qd7 {[%emt 0:01:01]} 12. f3 {[%emt 0:04:32]} Nd6 {[%emt 0:00:10]} 13. Nc5 {[%emt 0:06:28]} Qc7 {[%emt 0:03:16]} 14. Nd3 {[%emt 0:02:10]} O-O {[%emt 0:00:22]} 15. b3 {[%emt 0:03:23]} Rfe8 {[%emt 0:09:12]} 16. Be3 {[%emt 0:04:04]} Rac8 {[%emt 0:03:42]} 17. Re1 {[%emt 0:06:29]} Bf8 {[%emt 0:16:35]} 18. Qd2 {[%emt 0:07:56]} g6 {[%emt 0:08:41]} 19. Qf2 {[%emt 0:12:49]} Bg7 {[%emt 0:06:16]} 20. Bf4 {[%emt 0:02:54]} Qb6 {[%emt 0:09:49]} 21. Be5 {[%emt 0:13:13]} Nde4 {[%emt 0:17:05]} 22. Qe3 {[%emt 0:20:17]} Rxe5 {[%emt 0:01:13]} 23. Nxe5 {[%emt 0:01:22]} Rc3 {[%emt 0:00:13]} 24. Qe2 {[%emt 0:07:30]} Qxd4+ {[%emt 0:00:13]} 25. Kh1 {[%emt 0:01:56]} Nf2+ {[%emt 0:01:17]} 26. Kg1 {[%emt 0:00:12]} N2g4+ {[%emt 0:00:10]} 27. Kh1 {[%emt 0:00:22]} Re3 {[%emt 0:00:15]} 0-1

[Event "12th Arad Open 2019"]
[Site "Arad"]
[Date "2019.07.26"]
[Round "4.26"]
[White "Nastase, Robert-Paul"]
[Black "Nedelcu, Teodor-Cosmin"]
[Result "0-1"]
[ECO "B44"]
[WhiteElo "2283"]
[BlackElo "1963"]
[Annotator "NA"]
[PlyCount "66"]
[EventDate "2019.07.24"]
[EventType "swiss"]
[EventCountry "ROU"]
[SourceTitle "playchess.com"]
[Source "ChessBase"]
[SourceQuality "1"]
[TimeControl "40/5400+30:900+30"]

1. e4 {[%emt 0:00:35]} c5 {[%emt 0:00:00]} 2. Nf3 {[%emt 0:00:05]} e6 {[%emt 0:00:00]} 3. d4 {[%emt 0:00:06]} cxd4 {[%emt 0:00:15]} 4. Nxd4 {[%emt 0:00:04]} Nc6 {[%emt 0:00:06]} 5. Nb5 {[%emt 0:00:39]} Nf6 {[%emt 0:00:10]} 6. N1c3 {[%emt 0:00:34]} Bb4 {[%emt 0:00:10]} 7. a3 {[%emt 0:01:19]} Bxc3+ {[%emt 0:00:06]} 8. Nxc3 {[%emt 0:00:04]} O-O {[%emt 0:00:07]} 9. Qd6 {[%emt 0:03:39]} Ne8 {[%emt 0:00:47]} 10. Qg3 {[%emt 0:00:59]} d5 {[%emt 0:00:22]} 11. exd5 {[%emt 0:00:12]} exd5 {[%emt 0:00:25]} 12. Bd3 {[%emt 0:01:35]} Qe7+ {[%emt 0:00:05]} 13. Kf1 {[%emt 0:01:03]} Be6 {[%emt 0:01:36]} 14. Bf4 {[%emt 0:00:21]} Rd8 {[%emt 0:00:32]} 15. h4 {[%emt 0:00:21]} Nf6 {[%emt 0:01:20]} 16. h5 {[%emt 0:00:06]} d4 {[%emt 0:02:08]} 17. Ne2 {[%emt 0:09:49]} Bg4 {[%emt 0:02:30]} 18. h6 {[%emt 0:01:03]} Bxe2+ {[%emt 0:01:14]} 19. Bxe2 {[%emt 0:00:08]} g6 {[%emt 0:00:10]} 20. Bd3 {[%emt 0:04:28]} Rfe8 {[%emt 0:02:26]} 21. Qh4 {[%emt 0:20:36]} Nd5 {[%emt 0:04:07]} 22. Bg5 {[%emt 0:00:44]} f6 {[%emt 0:00:48]} 23. Bd2 {[%emt 0:00:08]} Ne5 {[%emt 0:01:01]} 24. Re1 {[%emt 0:01:00]} Qc5 {[%emt 0:00:25]} 25. Be4 {[%emt 0:04:18]} Re6 {[%emt 0:03:08]} 26. b3 {[%emt 0:10:31]} Rde8 {[%emt 0:00:50]} 27. Rh3 {[%emt 0:06:32]} f5 {[%emt 0:01:19]} 28. Bd3 {[%emt 0:16:14]} Nxd3 {[%emt 0:02:27]} 29. Rxe6 {[%emt 0:11:00]} Rxe6 {[%emt 0:00:04]} 30. g4 {[%emt 0:03:04]} N3f4 {[%emt 0:03:25]} 31. gxf5 {[%emt 0:00:07]} Qb5+ {[%emt 0:00:14]} 32. Rd3 {[%emt 0:00:06]} Nxd3 {[%emt 0:01:37]} 33. fxe6 {[%emt 0:00:06]} N3f4+ {[%emt 0:00:21]} 0-1

[Event "12th Arad Open 2019"]
[Site "Arad"]
[Date "2019.07.26"]
[Round "4.27"]
[White "Pop, Alexandru"]
[Black "Martin Perez, Javier"]
[Result "1-0"]
[ECO "D45"]
[WhiteElo "2276"]
[BlackElo "1961"]
[Annotator "NA"]
[PlyCount "87"]
[EventDate "2019.07.24"]
[EventType "swiss"]
[EventCountry "ROU"]
[SourceTitle "playchess.com"]
[Source "ChessBase"]
[SourceQuality "1"]
[TimeControl "40/5400+30:900+30"]

1. d4 {[%emt 0:00:51]} d5 {[%emt 0:00:00]} 2. c4 {[%emt 0:00:04]} c6 {[%emt 0:00:00]} 3. Nc3 {[%emt 0:00:06]} Nf6 {[%emt 0:00:00]} 4. e3 {[%emt 0:00:03]} e6 {[%emt 0:00:00]} 5. Nf3 {[%emt 0:00:08]} Nbd7 {[%emt 0:00:03]} 6. Qc2 {[%emt 0:00:06]} Bd6 {[%emt 0:00:22]} 7. Bd3 {[%emt 0:00:53]} O-O {[%emt 0:02:10]} 8. O-O {[%emt 0:00:24]} h6 {[%emt 0:05:44]} 9. Rd1 {[%emt 0:02:26]} Qe7 {[%emt 0:01:53]} 10. e4 {[%emt 0:01:43]} dxe4 {[%emt 0:01:31]} 11. Nxe4 {[%emt 0:00:05]} Nxe4 {[%emt 0:00:23]} 12. Bxe4 {[%emt 0:00:03]} e5 {[%emt 0:01:36]} 13. Be3 {[%emt 0:02:24]} exd4 {[%emt 0:10:29]} 14. Bxd4 {[%emt 0:00:19]} Nc5 {[%emt 0:01:19]} 15. Bf5 {[%emt 0:01:24]} Bxf5 {[%emt 0:05:28]} 16. Qxf5 {[%emt 0:00:05]} Qe4 {[%emt 0:09:29]} 17. Qxe4 {[%emt 0:05:37]} Nxe4 {[%emt 0:00:07]} 18. Be3 {[%emt 0:01:37]} Bc5 {[%emt 0:11:53]} 19. Bxc5 {[%emt 0:00:36]} Nxc5 {[%emt 0:00:06]} 20. b4 {[%emt 0:00:14]} Na6 {[%emt 0:01:08]} 21. a3 {[%emt 0:00:10]} Rad8 {[%emt 0:00:43]} 22. Kf1 {[%emt 0:02:35]} Rfe8 {[%emt 0:03:52]} 23. Rxd8 {[%emt 0:05:55]} Rxd8 {[%emt 0:00:09]} 24. Ke2 {[%emt 0:00:04]} Kf8 {[%emt 0:01:29]} 25. Rd1 {[%emt 0:00:35]} Rxd1 {[%emt 0:01:34]} 26. Kxd1 {[%emt 0:00:03]} Nc7 {[%emt 0:01:22]} 27. Kd2 {[%emt 0:00:52]} Ke7 {[%emt 0:00:40]} 28. Nd4 {[%emt 0:00:52]} Ne6 {[%emt 0:05:05]} 29. Nf5+ {[%emt 0:00:56]} Kd7 {[%emt 0:00:37]} 30. Ke3 {[%emt 0:02:05]} b6 {[%emt 0:03:47]} 31. g4 {[%emt 0:05:03]} a6 {[%emt 0:07:16]} 32. h4 {[%emt 0:00:36]} c5 {[%emt 0:01:15]} 33. bxc5 {[%emt 0:00:28]} bxc5 {[%emt 0:00:12]} 34. Ke4 {[%emt 0:00:13]} Kc6 {[%emt 0:02:48]} 35. Ke5 {[%emt 0:00:20]} Kb6 {[%emt 0:02:13]} 36. Nxg7 {[%emt 0:10:09]} Nxg7 {[%emt 0:01:07]} 37. Kf6 {[%emt 0:00:10]} Ne8+ {[%emt 0:02:21]} 38. Ke7 {[%emt 0:01:38]} Nc7 {[%emt 0:00:42]} 39. g5 {[%emt 0:07:09]} hxg5 {[%emt 0:00:36]} 40. h5 {[%emt 0:00:00]} Nb5 {[%emt 0:00:00]} 41. h6 {[%emt 0:05:00]} Nxa3 {[%emt 0:06:46]} 42. h7 {[%emt 0:00:06]} Nxc4 {[%emt 0:00:28]} 43. h8=Q {[%emt 0:00:06]} Kb5 {[%emt 0:00:23]} 44. Qc3 {[%emt 0:00:43]} 1-0